Cogmind - Beta 9.4 *** ADVENTURER MODE // 2020.08.15 @ 16:46:54 Player: Scyralis Result: Self-destructed Performance ------------- Evolutions (1) 500 Regions Visited (2) 400 Robots Destroyed (44) 220 Value Destroyed (1027) 1027 Prototype IDs (9) 180 Alien Tech Used (0) 0 Bonus (11) 11 TOTAL SCORE: 2338 Bonus ------- High Alert Combat Kills 11 Cogmind --------- Core Integrity 113/400 Matter 243/300 Energy 100/100 System Corruption 2% Temperature Cool (21) Movement Core (300) Ox5 Location -9/Materials Parts ------- > --- POWER (1) -------- (None) > --- PROPULSION (2) --- (None) > --- UTILITY (4) ------ Heat Sink Medium Storage Unit Hardened Light Armor Plating > --- WEAPON (2) ------- Improved Assault Rifle > --- INVENTORY (8) ---- Great Maul Peak State ------------ > --- POWER ------------ Light Ion Engine > --- PROPULSION ------- Wheel Wheel > --- UTILITY ---------- Heat Sink Medium Storage Unit Hardened Light Armor Plating Hardlight Generator > --- WEAPON ----------- Advanced Beam Rifle Great Maul > --- INVENTORY -------- Light Armor Plating [Rating: 17] Favorites ----------- Power Improved Ion Engine Engine Improved Ion Engine Propulsion Wheel Wheel Wheel Utility Medium Storage Unit Device Heat Sink Storage Medium Storage Unit Protection Hardened Light Armor Plating Weapon Light Assault Rifle Energy Gun Particle Gun Energy Cannon Advanced Beam Cannon Ballistic Gun Light Assault Rifle Impact Weapon Great Maul Slashing Weapon Mining Claw Build | -11 -10 -9 ------- Run | Scr Mat Mat Slots Evolved 2 | . . 2 Power . | . . . Propulsion . | . . . Utility 2 | . . 2 Weapon . | . . . Parts Attached 33 | 6 6 21 Power 4 | 1 1 2 Engine 4 | 1 1 2 Core . | . . . Reactor . | . . . Propulsion 6 | 2 2 2 Treads . | . . . Leg . | . . . Wheel 6 | 2 2 2 Hover . | . . . Flight . | . . . Utility 9 | 1 2 6 Device 4 | . 1 3 Storage 2 | 1 1 . Processor . | . . . Hackware . | . . . Protection 3 | . . 3 Artifact . | . . . Weapon 14 | 2 1 11 Energy Gun 9 | 1 1 7 Energy Cannon 1 | . . 1 Ballistic Gun 2 | 1 . 1 Ballistic Cannon . | . . . Launcher . | . . . Special Weapon . | . . . Impact Weapon 1 | . . 1 Slashing Weapon 1 | . . 1 Piercing Weapon . | . . . Special Melee Weapon . | . . . Unidentified Prototypes 3 | . . 3 Parts Lost 16 | . 3 13 Power 2 | . . 2 Propulsion 6 | . 2 4 Utility 3 | . . 3 Weapon 5 | . 1 4 Highest Loss Streak 6 | . 2 6 Average Slot Usage (%) 81 | . 82 80 Engine 10 | . 14 7 Wheel 20 | . 25 17 Device 11 | . 1 18 Storage 12 | . 14 11 Protection 3 | . . 6 Energy Gun 12 | . 12 12 Ballistic Gun 6 | . 14 1 Impact Weapon 2 | . . 4 Naked Turns . | . . . Heaviest Build 28 | 12 20 28 Greatest Support 26 | 26 26 20 Greatest Overweight (x) 5 | . 1 5 Average Overweight (x) . | . . 1 Largest Inventory Capacity 8 | 6 8 8 Average Capacity 7 | 4 6 8 Most Carried 3 | 2 3 2 Average Carried . | . . . Final Capacity 8 | 6 8 8 Final Carried 2 | . 2 1 Class Distribution -------------------- 78% | Mutant 21% | Scavenger-Mutant Dominant Class ---------------- Mutant | -10/Materials Mutant | -9/Materials Resources | -11 -10 -9 ----------- Run | Scr Mat Mat Matter Collected 520 | 262 98 160 Remotely . | . . . Salvage Created 1581 | 63 510 1008 Parts 90 | 2 27 61 Haulers Intercepted 4 | . 2 2 Recyclers Shooed . | . . . Parts Field Recycled . | . . . Retrieved Matter . | . . . Parts Self-Destructed . | . . . Prevented . | . . . Kills | -11 -10 -9 ------- Run | Scr Mat Mat Combat Hostiles Destroyed 29 | . 9 20 Melee 3 | . . 3 Guns 21 | . 9 12 Cannons 5 | . . 5 Classes Destroyed 9 | 1 6 2 Worker 4 | . 1 3 Builder 1 | . 1 . Tunneler 1 | . . 1 Hauler 4 | . 2 2 Recycler 1 | 1 . . Watcher 4 | . 2 2 Swarmer 8 | . 3 5 Grunt 14 | . 6 8 Sentry 7 | . . 7 Best Kill Streak 6 | 1 6 6 Combat Bots Only 5 | . 4 5 Max Kills in Single Turn 1 | 1 1 1 Gunslinging . | . . . Exploded . | . . . Melee 1 | . . 1 Uniques/NPCs Destroyed . | . . . Combat | -11 -10 -9 -------- Run | Scr Mat Mat Damage Taken 1820 | . 489 1331 Core 479 | . 192 287 Absorbed by Shields 58 | . . 58 Core Remaining (%) 61 | 100 23 . Volleys Fired 132 | 2 52 78 Largest 2 | 2 2 2 Hottest 108 | 60 85 108 Shots Fired 181 | 4 89 88 Gun 163 | 4 89 70 Cannon 18 | . . 18 Launcher . | . . . Special . | . . . Kinetic 74 | 2 52 20 Thermal 73 | . 24 49 Explosive . | . . . Electromagnetic 34 | 2 13 19 Robot Hit Streak 38 | 4 38 25 Robot Miss Streak 2 | . 2 2 Penetration Max . | . . . Secondary Targets 3 | . 3 . Max Gunslinging Chain 1 | . 1 . Shots Hit Robots 170 | 4 69 97 Core Hits 65 | 2 30 33 Critical Hits 3 | . . 3 Critical Kills 1 | . . 1 Critical Parts Destroyed 1 | . . 1 Melee Attacks 20 | . . 20 Impact 13 | . . 13 Slashing 7 | . . 7 Piercing . | . . . Sneak Attacks 4 | . . 4 Combat Hostiles . | . . . Follow-up Attacks . | . . . Damage Inflicted 2840 | 44 768 2028 Guns 1865 | 44 768 1053 Cannons 284 | . . 284 Explosions . | . . . Melee 691 | . . 691 Ramming . | . . . Kinetic 629 | 18 316 295 Thermal 1126 | . 294 832 Explosive . | . . . Electromagnetic 394 | 26 158 210 Impact 482 | . . 482 Slashing 209 | . . 209 Piercing . | . . . Highest Corruption 2 | . . 2 Average Corruption 2 | . . 2 Corruption Purged . | . . . Effects 4 | . . 4 Message Errors 1 | . . 1 Data Loss (minor) 1 | . . 1 Targeting Errors 2 | . . 2 Overload Shots . | . . . Overflow Damage 111 | . . 111 Projectiles . | . . . Explosions . | . . . Melee 111 | . . 111 Knockbacks 1 | . . 1 Impact 1 | . . 1 Kinetic . | . . . Secondary . | . . . Self-Inflicted Damage . | . . . Shots . | . . . Rammed . | . . . Targets Rammed . | . . . Kicked . | . . . Crushed . | . . . Highest Temperature 523 | 20 523 94 Average Temperature 91 | 15 135 31 Received Heat Transfer 967 | . 291 676 Effects 5 | . 5 . Shutdowns 1 | . 1 . Damage (minor) 2 | . 2 . Damage (core) 2 | . 2 . Siege Activations . | . . . Robots Corrupted . | . . . Combat Hostiles . | . . . Parts Fried 6 | . 1 5 Impact Corruptions 6 | . . 6 Robots Melted . | . . . Combat Hostiles . | . . . Parts Melted 5 | . 1 4 Heat Transferred 2368 | . 740 1628 Parts Sabotaged . | . . . Parts Stolen . | . . . Parts Stripped . | . . . Power Chain Reactions . | . . . Missiles Intercepted . | . . . Alert | -11 -10 -9 ------- Run | Scr Mat Mat Peak Influence 416 | 5 224 416 Average Influence 170 | 2 117 222 Maximum Alert Level 2 | . 1 2 Low Security (%) 61 | 100 86 40 Level 1 37 | . 13 56 Level 2 1 | . . 2 Level 3 . | . . . Level 4 . | . . . Level 5 . | . . . High Security . | . . . Max Security . | . . . Squads Dispatched 3 | . . 3 Investigation 3 | . . 3 Extermination . | . . . Reinforcement . | . . . Assault . | . . . Garrison . | . . . Intercept . | . . . Construction Impeded . | . . . Haulers Reinforced . | . . . Stealth | -11 -10 -9 --------- Run | Scr Mat Mat Distress Signals 2 | . 1 1 Communications Jammed . | . . . Distress Signals . | . . . Times Spotted 46 | . 15 31 Peak Tracking Total 6 | . 4 6 Tactical Retreats . | . . . Traps | -11 -10 -9 ------- Run | Scr Mat Mat Traps Triggered 1 | . . 1 Indirectly . | . . . Trap Hack Attempts . | . . . Triggered . | . . . Disarmed . | . . . Reprogrammed 3 | . 3 . Reused . | . . . Traps Extracted . | . . . Installed . | . . . Triggered . | . . . Machines | -11 -10 -9 ---------- Run | Scr Mat Mat Machines Disabled 1 | . . 1 Max in Single Turn 1 | . . 1 Machines Sabotaged . | . . . Garrisons Compromised . | . . . Overloaded Fab Kills . | . . . Fab Network Shutdowns . | . . . Hacking | -11 -10 -9 --------- Run | Scr Mat Mat Machines Accessed 12 | . 5 7 Terminals 7 | . 4 3 Fabricators . | . . . Repair Stations 1 | . . 1 Recycling Units 2 | . 1 1 Scanalyzers 2 | . . 2 Garrison Access . | . . . Total Hacks 35 | . 16 19 Successful 25 | . 9 16 Failed 10 | . 7 3 Catastrophic 1 | . 1 . Database Lockouts . | . . . Manual 9 | . 3 6 Terminals 26 | . 14 12 Fabricators . | . . . Repair Stations 4 | . . 4 Recycling Units 3 | . 2 1 Scanalyzers 2 | . . 2 Garrison Access . | . . . Terminal Hacks 17 | . 8 9 Prototype ID Bank 4 | . 2 2 Level Access Points 1 | . . 1 Branch Access Points 1 | . . 1 Alert Level 3 | . 1 2 Unreport Threat 3 | . 3 . Locate Traps 1 | . 1 . Reprogram Traps 1 | . 1 . Dispatch Records 1 | . . 1 Hauler Manifests 2 | . . 2 Fabricator Hacks . | . . . Repair Station Hacks 4 | . . 4 Scan Component 2 | . . 2 Repair 2 | . . 2 Recycling Unit Hacks 2 | . 1 1 Retrieve Components 2 | . 1 1 Scanalyzer . | . . . Garrison Access Hacks . | . . . Unauthorized Hacks 4 | . . 4 Terminals . | . . . Fabricators . | . . . Repair Stations . | . . . Recycling Units . | . . . Scanalyzers 2 | . . 2 Extract 2 | . . 2 Garrison Access . | . . . Data Cores Recovered . | . . . Used . | . . . Hacking Detections 10 | . 5 5 Full Trace Events 1 | . 1 . Feedback Events . | . . . Feedback Blocked . | . . . Robot Schematics Acquired . | . . . Robots Built . | . . . Matter . | . . . Time . | . . . Total Robot Build Rating . | . . . Part Schematics Acquired 9 | . . 9 Parts Built . | . . . Matter . | . . . Time . | . . . Total Part Build Rating . | . . . Parts Repaired 2 | . . 2 Time 64 | . . 64 Parts Recycled . | . . . Recycled Matter . | . . . Retrieved Matter . | . . . Retrieved Components 1 | . . 1 Parts Scanalyzed . | . . . Part Schematics Acquired . | . . . Parts Damaged . | . . . Bothacking | -11 -10 -9 ------------ Run | Scr Mat Mat Used RIF Installer . | . . . Robots Hacked . | . . . Non-combat . | . . . Combat . | . . . Robot Hacks Applied . | . . . Relay Couplers Released . | . . . Robots Rewired . | . . . Allies Hacked . | . . . Hacks Repelled . | . . . Allies | -11 -10 -9 -------- Run | Scr Mat Mat Total Allies . | . . . Largest Group . | . . . Highest-Rated Group . | . . . Highest-Rated Ally . | . . . Total Orders . | . . . Ally Attacks . | . . . Total Damage . | . . . Kills . | . . . Allies Corrupted . | . . . Allies Melted . | . . . Intel | -11 -10 -9 ------- Run | Scr Mat Mat Robot Analysis Total . | . . . Derelict Logs Recovered . | . . . Drone Launches . | . . . Drone Recoveries . | . . . Exploration | -11 -10 -9 ------------- Run | Scr Mat Mat Turns Passed 1116 | 65 412 639 Spaces Moved 675 | 51 319 305 Core 14 | 7 . 7 Treads . | . . . Legs . | . . . Wheels 661 | 44 319 298 Hover . | . . . Flight . | . . . Fastest Speed 50 | 50 80 80 Average Speed 88 | 84 83 95 Slowest Speed 300 | 90 90 300 Overloaded Moves . | . . . Propulsion Burnouts . | . . . Robots Hopped . | . . . Cave-ins Triggered . | . . . Exploration Rate (%) 37 | 4 76 33 Regions Visited 2 Branch Regions . Pre-discovered Areas . | . . . Known Exits Taken . | . . . Unknown Exits Taken 2 | 1 1 . Scrap Searched . | . . . Spaces Dug . | . . . Terrain Destroyed . | . . . Melee . | . . . Projectile . | . . . AOE . | . . . Actions | -11 -10 -9 --------- Run | Scr Mat Mat Total 981 | 69 386 526 Wait 78 | 3 . 75 Move 673 | 50 318 305 Hop . | . . . Pick Up 34 | 7 8 19 Fast Attach . | . . . Attach 26 | 6 6 14 Detach . | . . . Swap 7 | . . 7 Drop 11 | 1 2 8 Fire 132 | 2 52 78 Melee 20 | . . 20 Ram . | . . . Kick . | . . . Crush . | . . . Escape Stasis . | . . . Rewire . | . . . Trap . | . . . Miscellaneous . | . . . Route ------- -11/Scrapyard -10/Materials (discovered 4 exits: *Mat x2 / [*Min x2]) -9/Materials (discovered 5 exits: Mat x3 / Min x2) History --------- Turn | Location | Event 17 | -11/Scrapyard | Discovered new exit (range 15) 66 | -11/Scrapyard | Entered Materials 179 | -10/Materials | Discovered new exit (range 9) 316 | -10/Materials | Build established: Mutant 329 | -10/Materials | Discovered new exit (range 15) 331 | -10/Materials | Discovered new exit (range 13) 427 | -10/Materials | Core integrity fell below 50% 433 | -10/Materials | Discovered new exit (range 16) 478 | -10/Materials | Entered another Materials area 478 | -9/Materials | Evolved 2 slots: Utility x2 581 | -9/Materials | Repaired Imp. Ion Engine 615 | -9/Materials | Repaired Particle Gun 781 | -9/Materials | Lost 6 parts (1p2n1u2w) 948 | -9/Materials | Identified exit to Mines 948 | -9/Materials | Identified exit to Materials 994 | -9/Materials | Core integrity fell below 50% 1117 | -9/Materials | Lost 4 parts (1p1n1u1w) 1117 | -9/Materials | Self-destructed Last Messages --------------- 01050_ Dropped Hrd. Light Armor Plating. 01072_ System corrupted: Adv. Beam Rifle targeting data glitched. 01072_ A-02 Transporter destroyed. 01076_ Acquired Prototype Ballistic Gun. 01077_ Identified Imp. Assault Rifle. 01077_ Hardlight Generator destroyed. 01077_ Wheel destroyed. 01080_ Critical hit. 01080_ Adv. Beam Rifle destroyed. 01084_ U-05 Engineer lays Concrete. 01086_ Lgt. Ion Engine destroyed. 01087_ Y-45 Defender suffers critical hit. 01097_ Y-45 Defender destroyed. 01105_ C-30 ARC bursts open, deploying its payload. 01105_ B-36 Bruiser unfolds itself. 01105_ G-34 Mercenary unfolds itself. 01107_ System corrupted: Imp. Assault Rifle targeting data glitched. 01116_ C-30 ARC bursts open, deploying its payload. 01116_ G-47 Trooper unfolds itself. 01116_ G-34 Mercenary unfolds itself. Map ----- +----------------------------------------------------+ | ?????????????????????????????????????????????????? | | ?????????????????????????????????????????????????? | | ?????????????????????????????????????????????????? | | ?????????????????????????????????????????????????? | | ?????????????????????????????????????????????????? | | ?????????????????????????????????????????????????? | | ?????????????????????????????????????????????????? | | ?????????????????????????????????????????????????? | | ?????????????????????????????????????????????????? | | ?????????????????????????????????????????????????? | | ??????????????????????? ! ?????????????????????? | | ??????????????????????? !% ?????????????????????? | | ??????????????????????? * ?????????????????????? | | ??????????????????????? ?????????????????????? | | ???????????????????????# #?????????????????????? | | ???????????????????????# #???#####?????????????? | | ???????????????????????# +??? #?????????????? | | ???????????????????????# #????"" #?????????????? | | ???????????????????????# #????"" #?????????????? | | ???????????????????????# #?????" #?????????????? | | ???????????????????????# #????? #?????????????? | | ???????????????????????+! #?????#+#?##########??? | | ???????????????????????#%= #???### ### #??? | | ???????????????????????#= ##### # #??? | | ???????????????????????#! # !#??? | | ???????????????????????#*@ + =#??? | | ???????????????????????#b[= # =!#??? | | ???????????????????????#[[ ##### # #??? | | ???????????????????????#! #???## ## #??? | | ???????????????????????#g #????# ## #??? | | ?????????????????????? g g #????# ## ###? | | ????????????????????? gg #????# ###########%## | | ???????????????????? %% #???## ##????# =!! | | ???????????????????##### ^^#???# ###### [ T | | ???????????????????????# #???# !!% # | | ???????????????????????# #???# %= + """ | | ???????????????????????# #???# ==%===# """ | | ???????????????????????# #???# ###!## """ | | ???????????????????????# ???##########+## """ | | ??????????????????????? ???# """ """ %## | | ???????????????????????? ???# =##! | | ??????????????????????????????#!! """"" ######### | | ?????????????????????????>????#!! """"" #??# | | ??????????????????????????????# """"" ##?# """ | | ??????????????????????#???????# #???""" | | ??????????????????????# ??????# ##?# """ | | ???????????????????????# ????####+#######??# | | ???????????????????????# ##### % #??????####+# | | ???????????????????????+ #????????# | | ???????????????????????# ########?# | +----------------------------------------------------+ Best States ------------- Heat Dissipation 38 Energy Generation 12 Energy Capacity 265 Matter Stores 300 Matter Capacity 300 Sight Range 16 Terrain Scan Density 10 Armor Coverage 150 Resistance: KI 20 Resistance: TH 20 Resistance: EX 20 Resistance: EM 20 Resistance: I 20 Resistance: S 20 Resistance: P 20 Evasion (%) 44 Offensive Hacking 10 Item Schematics ----------------- Lgt. Armor Plating | -9/Materials | Extracted Imp. Aluminum Leg | -9/Materials | Extracted Shield Generator | -9/Materials | Extracted Beam Rifle | -9/Materials | Extracted Hpw. Tractor Beam | -9/Materials | Extracted Imp. Treads | -9/Materials | Extracted Integration Mediator | -9/Materials | Extracted Imp. Terrain Scanner | -9/Materials | Extracted Core Shielding | -9/Materials | Extracted Robot Schematics ------------------ None Fabricated ------------ Nothing Alien Tech Used ----------------- None Achievements -------------- None Challenges ------------ None Game ------ Seed DataThermalManipulator Manual? 0 Play Time 00:13:01 Cumulative 446.3 hours Start 2020.08.15 @ 16:38:32 End 2020.08.15 @ 16:46:54 Sessions 1 Manual Loads 0 Difficulty Adventurer Special Mode None Game No. 121 Rogue 1 Adventurer 120 Explorer 0 Win Type - Total 2 Types 1/0/0/1/0/0/0 Lore% 43 Gallery% 68 Achievement% 52 Wizard Run 0 Options --------- ASCII 0 Keyboard 0 Movement Numpad Keybinds 0 Fullscreen 1 Font 12/Smallcaps Map View 83x54 Tactical HUD 1 Map Filters NONE Filters NONE Steam X RUN: 2f76e7ae-0d79-4d67-aec2-f36568e2411f